Cogmind - Beta 13 @@@ ROGUE MODE // 2024.04.17 @ 22:43:01 Player: NOGames Result: Self-destructed Performance ------------- Evolutions (2) 1000 Regions Visited (4) 800 Robots Destroyed (42) 210 Value Destroyed (1122) 1122 Prototype IDs (0) 0 Alien Tech Used (0) 0 Bonus (-41) -41 TOTAL SCORE: 3091 Bonus ------- Friendly Fire -41 Cogmind --------- Core Integrity 439/550 Matter 119/300 Energy 182/290 System Corruption 0% Temperature Cool (9) Movement Treading (160) Location -8/Materials Parts ------- > --- POWER (1) -------- Improved Deuterium Engine > --- PROPULSION (4) --- Light Treads Light Treads > --- UTILITY (4) ------ Large Storage Unit Launcher Guidance Computer Hacking Suite > --- WEAPON (2) ------- (None) > --- INVENTORY (15) --- Light Ion Engine Improved Ion Engine Light Treads Medium Laser Light Assault Rifle Light Assault Rifle Heavy Assault Rifle Flail Peak State ------------ > --- POWER ------------ Improved Deuterium Engine > --- PROPULSION ------- Light Treads Light Treads Light Treads Light Treads > --- UTILITY ---------- Heat Sink Large Storage Unit Launcher Guidance Computer Hacking Suite > --- WEAPON ----------- Proton Missile Launcher Rocket Launcher > --- INVENTORY -------- Light Ion Engine Improved Ion Engine Light Treads Medium Laser Light Assault Rifle Light Assault Rifle Heavy Assault Rifle Mini Grenade Launcher Flail [Rating: 24] Favorites ----------- Power Light Ion Engine Engine Light Ion Engine Propulsion Light Treads Treads Light Treads Utility Small Storage Unit Device Heat Sink Storage Small Storage Unit Processor Launcher Guidance Computer Hackware Hacking Suite Weapon Heavy Assault Rifle Energy Gun Medium Laser Ballistic Gun Heavy Assault Rifle Launcher Mini Grenade Launcher Build | -11 -10 -9 -9 -8 ------- Run | Yrd Mat Mat Min Mat Slots Evolved 4 | . . 2 . 2 Power . | . . . . . Propulsion 2 | . . 1 . 1 Utility 2 | . . 1 . 1 Weapon . | . . . . . Parts Attached 25 | 6 2 8 6 3 Power 4 | 1 . 2 1 . Engine 4 | 1 . 2 1 . Core . | . . . . . Reactor . | . . . . . Propulsion 6 | 2 . 3 . 1 Treads 6 | 2 . 3 . 1 Leg . | . . . . . Wheel . | . . . . . Hover . | . . . . . Flight . | . . . . . Utility 5 | 1 . 1 2 1 Device 1 | . . . . 1 Storage 2 | 1 . . 1 . Processor 1 | . . . 1 . Hackware 1 | . . 1 . . Protection . | . . . . . Artifact . | . . . . . Weapon 10 | 2 2 2 3 1 Energy Gun 2 | 1 1 . . . Energy Cannon . | . . . . . Ballistic Gun 4 | 1 1 2 . . Ballistic Cannon . | . . . . . Launcher 4 | . . . 3 1 Special Weapon . | . . . . . Impact Weapon . | . . . . . Slashing Weapon . | . . . . . Piercing Weapon . | . . . . . Special Melee Weapon . | . . . . . Unidentified Prototypes . | . . . . . Parts Lost 9 | . . 3 . 6 Power 1 | . . 1 . . Propulsion 4 | . . 2 . 2 Utility 1 | . . . . 1 Weapon 3 | . . . . 3 Highest Loss Streak 6 | . . 1 . 6 To Critical Strikes . | . . . . . Average Slot Usage (%) 85 | . 84 80 88 98 Engine 11 | . 14 10 11 9 Treads 31 | . 28 31 33 34 Storage 11 | . 14 11 11 9 Hackware 5 | . . 5 11 9 Energy Gun 5 | . 13 2 . . Ballistic Gun 14 | . 14 19 12 . Launcher 4 | . . . 9 18 Naked Turns . | . . . . . Heaviest Build 42 | 11 11 18 41 42 Greatest Support 80 | 40 40 60 60 80 Greatest Overweight (x) 1 | 1 . . . 1 Average Overweight (x) . | . . . . . Largest Inventory Capacity 15 | 8 8 8 15 15 Average Capacity 9 | 7 8 8 13 15 Most Carried 11 | 6 8 8 11 10 Average Carried 7 | 4 7 6 9 8 Final Capacity 15 | 8 8 8 15 15 Final Carried 11 | 6 8 8 11 8 Class Distribution -------------------- 78% | Mutant 21% | Scavenger-Mutant Dominant Class ---------------- Mutant | -10/Materials Scavenger-Mutant | -9/Materials Mutant | -9/Mines Mutant | -8/Materials Resources | -11 -10 -9 -9 -8 ----------- Run | Yrd Mat Mat Min Mat Matter Collected 694 | 219 88 287 100 . Remotely . | . . . . . Salvage Created 1466 | . 260 685 216 305 Parts 74 | . 9 35 14 16 Haulers Intercepted 2 | . 1 . . 1 Recyclers Shooed . | . . . . . Parts Field Recycled . | . . . . . Retrieved Matter . | . . . . . Parts Self-Destructed . | . . . . . Prevented . | . . . . . Kills | -11 -10 -9 -9 -8 ------- Run | Yrd Mat Mat Min Mat Combat Hostiles Destroyed 26 | . 4 12 6 4 Guns 16 | . 4 12 . . AOE 10 | . . . 6 4 Classes Destroyed 12 | . 4 4 1 3 Worker 2 | . . 1 . 1 Tunneler 2 | . 1 . 1 . Hauler 2 | . 1 . . 1 Recycler 3 | . . 1 2 . Mechanic 1 | . . . . 1 Operator 4 | . . 2 . 2 Watcher 2 | . 1 1 . . Swarmer 4 | . . . 4 . Grunt 17 | . 4 9 2 2 Duelist 1 | . . . . 1 Sentry 3 | . . 3 . . Hunter 1 | . . . . 1 Best Kill Streak 7 | . 2 5 4 7 Combat Bots Only 4 | . 1 3 4 4 Max Kills in Single Turn 3 | . 2 1 3 2 Gunslinging . | . . . . . Exploded 3 | . . . 3 1 Melee . | . . . . . Uniques/NPCs Destroyed . | . . . . . Combat | -11 -10 -9 -9 -8 -------- Run | Yrd Mat Mat Min Mat Hostile Shots Fired 127 | . 22 79 7 19 Missed 30 | . 5 19 2 4 Damage Taken 1687 | . 220 813 51 603 Core 314 | . 66 125 12 111 Absorbed by Shields . | . . . . . Core Remaining (%) 79 | 100 73 . 65 . Volleys Fired 109 | . 34 58 4 13 Largest 2 | . 2 2 1 2 Hottest 72 | . 70 70 39 72 Shots Fired 208 | . 65 116 4 23 Gun 181 | . 65 116 . . Cannon . | . . . . . Launcher 27 | . . . 4 23 Special . | . . . . . Kinetic 126 | . 34 92 . . Thermal 55 | . 31 24 . . Explosive 13 | . . . 2 11 Electromagnetic 14 | . . . 2 12 Robot Hit Streak 25 | . 10 25 4 16 Robot Miss Streak 3 | . 2 3 2 . Penetration Max . | . . . . . Secondary Targets . | . . . . . Shots Hit Robots 152 | . 46 89 1 16 Core Hits 73 | . 15 32 10 16 Critical Kills . | . . . . . Critical Parts Destroyed 1 | . 1 . . . Critical Strikes 6 | . 6 . . . Burn 5 | . 5 . . . Destroy 1 | . 1 . . . Melee Attacks . | . . . . . Impact . | . . . . . Slashing . | . . . . . Piercing . | . . . . . Sneak Attacks . | . . . . . Combat Hostiles . | . . . . . Follow-up Attacks . | . . . . . Damage Inflicted 2940 | . 490 1122 314 1014 Guns 1597 | . 480 1117 . . Cannons . | . . . . . Explosions 1316 | . . . 302 1014 Melee . | . . . . . Ramming 27 | . 10 5 12 . Kinetic 1027 | . 167 860 . . Thermal 589 | . 313 257 19 . Explosive 603 | . . . 177 426 Electromagnetic 694 | . . . 106 588 Impact . | . . . . . Slashing . | . . . . . Piercing . | . . . . . Highest Corruption . | . . . . . Average Corruption . | . . . . . Corruption Purged . | . . . . . Corruption Blocked . | . . . . . Overload Shots . | . . . . . Overflow Damage 33 | . . . . 33 Projectiles . | . . . . . Explosions 33 | . . . . 33 Melee . | . . . . . Knockbacks . | . . . . . Impact . | . . . . . Kinetic . | . . . . . Secondary . | . . . . . Self-Inflicted Damage 140 | . . . . 140 Shots 7 | . . . . 7 Rammed 8 | . 5 2 1 . Targets Rammed 10 | . 5 3 2 . Kicked . | . . . . . Crushed 2 | . . 1 1 . Highest Temperature 183 | . 183 88 . 4 Average Temperature 44 | . 57 26 . 4 Received Heat Transfer 615 | . 144 402 24 45 Siege Activations . | . . . . . Robots Corrupted . | . . . . . Combat Hostiles . | . . . . . Parts Fried 4 | . . . 1 3 Impact Corruptions . | . . . . . Robots Melted . | . . . . . Combat Hostiles . | . . . . . Parts Melted 3 | . 2 1 . . Heat Transferred 2122 | . 1295 777 50 . Parts Sabotaged . | . . . . . Parts Stolen . | . . . . . Parts Stripped . | . . . . . Power Chain Reactions 2 | . . . 2 . Alert | -11 -10 -9 -9 -8 ------- Run | Yrd Mat Mat Min Mat Peak Influence 377 | . 162 377 272 268 Initial 73 | . . 5 73 27 Average 137 | . 69 187 179 106 Maximum Alert Level 1 | . . 1 1 1 Low Security (%) 68 | 100 100 68 24 78 Level 1 31 | . . 31 75 21 Level 2 . | . . . . . Level 3 . | . . . . . Level 4 . | . . . . . Level 5 . | . . . . . High Security . | . . . . . Max Security . | . . . . . Squads Dispatched 6 | . 1 2 1 2 Investigation 2 | . . . 1 1 Extermination . | . . . . . Reinforcement 4 | . 1 2 . 1 Assault . | . . . . . Garrison . | . . . . . Intercept . | . . . . . Searches Triggered . | . . . . . Construction Impeded . | . . . . . Haulers Reinforced . | . . . . . Active Scanning Responses . | . . . . . Cargo Convoy Interrupts . | . . . . . Stealth | -11 -10 -9 -9 -8 --------- Run | Yrd Mat Mat Min Mat Distress Signals 3 | . . 1 . 2 Communications Jammed . | . . . . . Distress Signals . | . . . . . Times Spotted 50 | . 13 21 6 10 Peak Tracking Total 5 | . 3 5 4 4 Tactical Retreats 2 | . 1 1 . . Traps | -11 -10 -9 -9 -8 ------- Run | Yrd Mat Mat Min Mat Traps Triggered 3 | . 1 . . 2 Indirectly 2 | . . . . 2 Trap Hack Attempts . | . . . . . Triggered . | . . . . . Disarmed . | . . . . . Reprogrammed . | . . . . . Reused . | . . . . . Traps Extracted . | . . . . . Installed . | . . . . . Triggered . | . . . . . Machines | -11 -10 -9 -9 -8 ---------- Run | Yrd Mat Mat Min Mat Machines Disabled 4 | . . 1 2 1 Max in Single Turn 2 | . . 1 2 1 Machines Repaired . | . . . . . Machines Dismantled . | . . . . . Machines Sabotaged . | . . . . . Overloaded Fab Kills . | . . . . . Hacking | -11 -10 -9 -9 -8 --------- Run | Yrd Mat Mat Min Mat Machines Accessed 8 | . 3 1 1 3 Terminals 7 | . 3 1 . 3 Fabricators . | . . . . . Repair Stations . | . . . . . Recycling Units . | . . . . . Scanalyzers . | . . . . . Garrison Access . | . . . . . Total Hacks 17 | . 6 2 1 8 Successful 8 | . 1 1 1 5 Failed 9 | . 5 1 . 3 Catastrophic 1 | . 1 . . . Database Lockouts . | . . . . . Manual 14 | . 6 2 . 6 Terminals 16 | . 6 2 . 8 Fabricators . | . . . . . Repair Stations . | . . . . . Recycling Units . | . . . . . Scanalyzers . | . . . . . Garrison Access . | . . . . . Terminal Hacks 5 | . . . 1 4 Robot Analysis 1 | . . . . 1 Open Door 1 | . . . 1 . Level Access Points 1 | . . . . 1 Branch Access Points 1 | . . . . 1 Locate Traps 1 | . . . . 1 Fabricator Hacks . | . . . . . Repair Station Hacks . | . . . . . Recycling Unit Hacks . | . . . . . Scanalyzer . | . . . . . Garrison Access Hacks . | . . . . . Unauthorized Hacks 3 | . 1 1 . 1 Terminals 3 | . 1 1 . 1 Botnet 3 | . 1 1 . 1 Fabricators . | . . . . . Repair Stations . | . . . . . Recycling Units . | . . . . . Scanalyzers . | . . . . . Garrison Access . | . . . . . Data Cores Recovered . | . . . . . Used . | . . . . . Hacking Detections 6 | . 3 1 . 2 Full Trace Events 2 | . 1 . . 1 Feedback Events . | . . . . . Feedback Blocked . | . . . . . Robot Schematics Acquired . | . . . . . Robots Built . | . . . . . Authchips . | . . . . . Time . | . . . . . Total Robot Build Rating . | . . . . . Part Schematics Acquired . | . . . . . Parts Built . | . . . . . Authchips . | . . . . . Time . | . . . . . Total Part Build Rating . | . . . . . Parts Repaired . | . . . . . Time . | . . . . . Parts Recycled . | . . . . . Recycled Matter . | . . . . . Retrieved Matter . | . . . . . Retrieved Components . | . . . . . Parts Scanalyzed . | . . . . . Part Schematics Acquired . | . . . . . Parts Damaged . | . . . . . Bothacking | -11 -10 -9 -9 -8 ------------ Run | Yrd Mat Mat Min Mat Used RIF Installer . | . . . . . Robots Hacked . | . . . . . Non-combat . | . . . . . Combat . | . . . . . Robot Hacks Applied . | . . . . . Relay Couplers Released . | . . . . . Fabnet Peak Effective % . | . . . . . Robots Rewired . | . . . . . Allies Hacked . | . . . . . Hacks Repelled . | . . . . . Allies | -11 -10 -9 -9 -8 -------- Run | Yrd Mat Mat Min Mat Total Allies . | . . . . . Largest Group . | . . . . . Highest-Rated Group . | . . . . . Highest-Rated Ally . | . . . . . Total Orders . | . . . . . Ally Attacks . | . . . . . Total Damage . | . . . . . Kills . | . . . . . Allies Corrupted . | . . . . . Allies Melted . | . . . . . Intel | -11 -10 -9 -9 -8 ------- Run | Yrd Mat Mat Min Mat Robot Analysis Total 1 | . . . . 1 Derelict Logs Recovered 3 | . . . 3 . Drone Launches . | . . . . . Drone Recoveries . | . . . . . Exploration | -11 -10 -9 -9 -8 ------------- Run | Yrd Mat Mat Min Mat Turns Passed 1717 | 65 508 585 419 140 Spaces Moved 803 | 36 232 226 248 61 Core 8 | 8 . . . . Treads 795 | 28 232 226 248 61 Legs . | . . . . . Wheels . | . . . . . Hover . | . . . . . Flight . | . . . . . Fastest Speed 50 | 50 160 160 160 160 Average Speed 159 | 141 160 160 160 161 Slowest Speed 240 | 160 160 160 160 240 Overloaded Moves . | . . . . . Propulsion Burnouts . | . . . . . Robots Hopped . | . . . . . Cave-ins Triggered . | . . . . . Exploration Rate (%) 29 | 3 38 21 69 17 Regions Visited 4 Branch Regions 1 Pre-discovered Areas 1 | . . . 1 . Known Exits Taken . | . . . . . Unknown Exits Taken 4 | 1 1 1 1 . Scrap Searched 1 | . . . 1 . Spaces Dug . | . . . . . Terrain Destroyed 97 | . . . 15 82 Melee . | . . . . . Projectile . | . . . . . AOE 97 | . . . 15 82 Terrain Rammed . | . . . . . Walls Destroyed . | . . . . . Machines Disabled . | . . . . . Actions | -11 -10 -9 -9 -8 --------- Run | Yrd Mat Mat Min Mat Total 1031 | 47 309 335 263 77 Wait 62 | . 26 36 . . Move 799 | 35 231 225 247 61 Hop . | . . . . . Pick Up 19 | 6 7 4 2 . Fast Attach 11 | 6 1 1 3 . Attach 8 | . 1 4 . 3 Detach . | . . . . . Swap 6 | . . 3 3 . Drop 7 | . 4 1 2 . Fire 109 | . 34 58 4 13 Melee . | . . . . . Ram . | . . . . . Kick . | . . . . . Crush 10 | . 5 3 2 . Escape Stasis . | . . . . . Rewire . | . . . . . Trap . | . . . . . Miscellaneous . | . . . . . Route ------- -11/Scrapyard -10/Materials -9/Materials -9/Mines -8/Materials (discovered 3 exits: Fac x3) History --------- Turn | Location | Event 32 | -11/Scrapyard | Discovered new exit (range 14) 66 | -11/Scrapyard | Entered Materials 314 | -10/Materials | Build established: Mutant 428 | -10/Materials | Discovered new exit (range 9) 574 | -10/Materials | Entered another Materials area 574 | -9/Materials | Evolved 2 slots: Propulsion x1, Utility x1 993 | -9/Materials | Discovered new exit (range 15) 1150 | -9/Materials | Build established: Scavenger-Mutant 1159 | -9/Materials | Entered Mines 1425 | -9/Mines | Received a Rocket Launcher from a helpful Derelict 1505 | -9/Mines | Learned Materials terminal intel 1508 | -9/Mines | Learned location of Storage (-7) 1513 | -9/Mines | Discovered new exit (range 10) 1524 | -9/Mines | Build established: Mutant 1530 | -9/Mines | Met a Derelict shopkeep closing up shop 1578 | -9/Mines | Entered Materials 1578 | -8/Materials | Evolved 2 slots: Propulsion x1, Utility x1 1579 | -8/Materials | Loaded intel: 12 terminal locations 1644 | -8/Materials | Identified exit to Factory 1718 | -8/Materials | Self-destructed Last Messages --------------- 01698_ The unstable cave ceiling collapses. 01700_ Lgt. Treads destroyed. 01706_ Heat Sink destroyed. 01706_ Critical hit (Blast). 01707_ The unstable cave ceiling collapses. 01707_ U-05 Engineer lays Concrete. 01708_ H-61 Shepherd calls for reinforcements. 01708_ ALERT: Hostile activity reported, dispatching reinforcements to area. 01709_ U-05 Engineer lays Concrete. 01710_ Rocket Launcher destroyed. 01710_ U-05 Engineer lays Concrete. 01711_ U-05 Engineer builds a Wall. 01714_ K-01 Serf collects debris. 01716_ U-05 Engineer lays Concrete. 01717_ K-01 Serf collects debris. 01717_ Mni. Grenade Launcher destroyed. 01717_ U-05 Engineer lays Concrete. 01718_ U-05 Engineer builds a Wall. 01718_ Proton Missile Launcher destroyed. Map ----- +----------------------------------------------------+ | | | | | | | | | | | | | | | | | | | | | | | | | ?????????????????????????????????????????????????? | | ?????????????????????????????????????????????????? | | ?????????????????????????????????????????????????? | | ?????????????????????????????????#???????????????? | | ???????????????????????????????? ????????????????? | | ??????????????????????#####????"""?#?????????????? | | ??????????????#########] #??? """ #?????????????? | | ??????????????# ## #??? """ #??